[Event "*** Titled Tuesday Blitz"]
[Site "Chess.com"]
[Date "2020.11.03"]
[Round "2"]
[White "Borsuk_Konstantin"]
[Black "dropstoneDP"]
[Result "0-1"]
[WhiteElo "2587"]
[BlackElo "2906"]
[TimeControl "180+1"]
[EndTime "10:19:06 PST"]
[Termination "dropstoneDP won by checkmate"]

1. d4 {[%clk 0:03:00.9]} 1... Nf6 {[%clk 0:03:00.1]} 2. c4 {[%clk 0:03:00.6]}
2... g6 {[%clk 0:02:56.7]} 3. Nc3 {[%clk 0:02:59.9]} 3... d5 {[%clk 0:02:57]} 4.
Nf3 {[%clk 0:02:59.7]} 4... Bg7 {[%clk 0:02:57.2]} 5. Bg5 {[%clk 0:03:00]} 5...
c5 {[%clk 0:02:54.4]} 6. dxc5 {[%clk 0:02:53.8]} 6... Qa5 {[%clk 0:02:54.5]} 7.
Rc1 {[%clk 0:02:42.9]} 7... dxc4 {[%clk 0:02:41.8]} 8. Qa4+ {[%clk 0:02:38.4]}
8... Qxa4 {[%clk 0:02:33.4]} 9. Nxa4 {[%clk 0:02:39.3]} 9... Ne4 {[%clk
0:02:18.8]} 10. Rxc4 {[%clk 0:02:18.1]} 10... Nxg5 {[%clk 0:02:09.7]} 11. Nxg5
{[%clk 0:02:18]} 11... Nc6 {[%clk 0:02:09.8]} 12. a3 {[%clk 0:01:58.6]} 12... h6
{[%clk 0:02:04.8]} 13. Nf3 {[%clk 0:01:58.1]} 13... Be6 {[%clk 0:02:05.1]} 14.
Rc1 {[%clk 0:01:57.6]} 14... O-O {[%clk 0:01:11.4]} 15. e3 {[%clk 0:01:48.8]}
15... Bb3 {[%clk 0:01:10.6]} 16. Nc3 {[%clk 0:01:48.3]} 16... Rac8 {[%clk
0:01:10.4]} 17. Be2 {[%clk 0:01:07.5]} 17... Na5 {[%clk 0:01:08.1]} 18. Nd4
{[%clk 0:00:59.1]} 18... Rxc5 {[%clk 0:01:03.6]} 19. O-O {[%clk 0:00:40.7]}
19... Rd8 {[%clk 0:00:57.1]} 20. Ne4 {[%clk 0:00:07.8]} 20... Rxc1 {[%clk
0:00:54.5]} 21. Rxc1 {[%clk 0:00:08.7]} 21... Bxd4 {[%clk 0:00:55.2]} 22. exd4
{[%clk 0:00:08.6]} 22... Rxd4 {[%clk 0:00:56.1]} 23. Nc5 {[%clk 0:00:06.3]}
23... Rd2 {[%clk 0:00:56.1]} 24. Bf3 {[%clk 0:00:04.9]} 24... b6 {[%clk
0:00:56.3]} 25. Nxb3 {[%clk 0:00:03.3]} 25... Nxb3 {[%clk 0:00:57.2]} 26. Rc7
{[%clk 0:00:02.1]} 26... Rxb2 {[%clk 0:00:55]} 27. h4 {[%clk 0:00:01.8]} 27...
e6 {[%clk 0:00:48.5]} 28. Rxa7 {[%clk 0:00:01.8]} 28... Nd4 {[%clk 0:00:49.1]}
29. Bb7 {[%clk 0:00:01.5]} 29... Kg7 {[%clk 0:00:44.9]} 30. g3 {[%clk
0:00:02.1]} 30... Kf6 {[%clk 0:00:44.6]} 31. Kg2 {[%clk 0:00:02.6]} 31... Rc2
{[%clk 0:00:44.5]} 32. Ra8 {[%clk 0:00:02.9]} 32... Ra2 {[%clk 0:00:36.7]} 33.
a4 {[%clk 0:00:03.1]} 33... Nc2 {[%clk 0:00:32.6]} 34. Bc6 {[%clk 0:00:03.3]}
34... Ne3+ {[%clk 0:00:31.2]} 35. Kf3 {[%clk 0:00:02.7]} 35... Nd1 {[%clk
0:00:30.8]} 36. Be8 {[%clk 0:00:02.9]} 36... Ke7 {[%clk 0:00:30.1]} 37. Bc6
{[%clk 0:00:02.5]} 37... f5 {[%clk 0:00:30.3]} 38. Kf4 {[%clk 0:00:02.5]} 38...
Kf6 {[%clk 0:00:18.2]} 39. Bf3 {[%clk 0:00:02.8]} 39... e5# {[%clk 0:00:18]} 0-1

[Event "*** Titled Tuesday Blitz"]
[Site "Chess.com"]
[Date "2020.11.03"]
[Round "2"]
[White "MariaFominykh"]
[Black "Karacsonyi_Gellert"]
[Result "0-1"]
[WhiteElo "2325"]
[BlackElo "2669"]
[TimeControl "180+1"]
[EndTime "10:19:06 PST"]
[Termination "Karacsonyi_Gellert won on time"]

1. Nf3 {[%clk 0:03:00.9]} 1... Nf6 {[%clk 0:03:00]} 2. g3 {[%clk 0:03:01.5]}
2... e6 {[%clk 0:03:00.5]} 3. Bg2 {[%clk 0:03:02.2]} 3... d5 {[%clk 0:03:01.4]}
4. O-O {[%clk 0:03:02.1]} 4... Be7 {[%clk 0:03:02.3]} 5. d3 {[%clk 0:03:02.2]}
5... O-O {[%clk 0:03:02.9]} 6. Nbd2 {[%clk 0:03:02.1]} 6... c5 {[%clk
0:03:03.5]} 7. e4 {[%clk 0:03:02.6]} 7... Nc6 {[%clk 0:03:04.1]} 8. Re1 {[%clk
0:03:02.6]} 8... b5 {[%clk 0:03:03.9]} 9. Qe2 {[%clk 0:02:58.5]} 9... a5 {[%clk
0:03:02.1]} 10. e5 {[%clk 0:02:56.6]} 10... Nd7 {[%clk 0:03:01.6]} 11. h4 {[%clk
0:02:51.5]} 11... Ba6 {[%clk 0:03:01.7]} 12. Nf1 {[%clk 0:02:51.1]} 12... Rc8
{[%clk 0:03:02]} 13. N1h2 {[%clk 0:02:38.2]} 13... Nd4 {[%clk 0:03:02.4]} 14.
Nxd4 {[%clk 0:02:26.9]} 14... cxd4 {[%clk 0:03:03.3]} 15. Nf3 {[%clk 0:02:23.9]}
15... Qb6 {[%clk 0:03:02.6]} 16. Bg5 {[%clk 0:02:19.4]} 16... Bxg5 {[%clk
0:03:00.9]} 17. Nxg5 {[%clk 0:02:01]} 17... h6 {[%clk 0:02:49]} 18. Nf3 {[%clk
0:02:00.7]} 18... b4 {[%clk 0:02:48.5]} 19. Rac1 {[%clk 0:01:58.6]} 19... a4
{[%clk 0:02:47.6]} 20. b3 {[%clk 0:01:49.1]} 20... axb3 {[%clk 0:02:44.2]} 21.
axb3 {[%clk 0:01:47.4]} 21... Rc3 {[%clk 0:02:39.8]} 22. Qd2 {[%clk 0:01:47.2]}
22... Rfc8 {[%clk 0:02:38.5]} 23. Re2 {[%clk 0:01:46.5]} 23... Bxd3 {[%clk
0:02:34.2]} 24. Ree1 {[%clk 0:01:41.3]} 24... Bxc2 {[%clk 0:02:12.3]} 25. Nxd4
{[%clk 0:01:40.5]} 25... Rd3 {[%clk 0:02:12.6]} 26. Qxd3 {[%clk 0:01:22.8]}
26... Bxd3 {[%clk 0:02:13.5]} 27. Rxc8+ {[%clk 0:01:22.7]} 27... Kh7 {[%clk
0:02:14.4]} 28. Nf3 {[%clk 0:01:05]} 28... Be4 {[%clk 0:02:14.4]} 29. Rec1
{[%clk 0:01:00.9]} 29... Bxf3 {[%clk 0:02:09.8]} 30. Bxf3 {[%clk 0:01:00.8]}
30... Nxe5 {[%clk 0:02:10.4]} 31. Be2 {[%clk 0:00:57.5]} 31... Qd4 {[%clk
0:02:03.6]} 32. R8c7 {[%clk 0:00:48]} 32... Qb2 {[%clk 0:01:59.2]} 33. Bd1
{[%clk 0:00:29.5]} 33... d4 {[%clk 0:01:30.4]} 34. f4 {[%clk 0:00:20.5]} 34...
Nd3 {[%clk 0:00:59.7]} 35. R7c2 {[%clk 0:00:19.8]} 35... Qxc1 {[%clk 0:00:56]}
36. Rxc1 {[%clk 0:00:19.6]} 36... Nxc1 {[%clk 0:00:56.9]} 37. Kf1 {[%clk
0:00:13.7]} 37... g6 {[%clk 0:00:56.5]} 38. Ke1 {[%clk 0:00:11.7]} 38... Nd3+
{[%clk 0:00:56.8]} 39. Kd2 {[%clk 0:00:11]} 39... Nc5 {[%clk 0:00:57.7]} 40. Bc2
{[%clk 0:00:08.2]} 40... h5 {[%clk 0:00:57.2]} 41. Bd1 {[%clk 0:00:06.5]} 41...
Kg7 {[%clk 0:00:57.7]} 42. Bc2 {[%clk 0:00:06.1]} 42... Kf6 {[%clk 0:00:58.3]}
43. Bd1 {[%clk 0:00:05.2]} 43... Ke7 {[%clk 0:00:58.5]} 44. Bc2 {[%clk
0:00:05.4]} 44... Kd6 {[%clk 0:00:59.1]} 45. Bd1 {[%clk 0:00:05.4]} 45... f5
{[%clk 0:00:39.4]} 46. Kc2 {[%clk 0:00:04.1]} 46... Ne4 {[%clk 0:00:38.4]} 47.
Kd3 {[%clk 0:00:03]} 47... Kc5 {[%clk 0:00:38.8]} 0-1

[Event "*** Titled Tuesday Blitz"]
[Site "Chess.com"]
[Date "2020.11.03"]
[Round "2"]
[White "redbaron8888"]
[Black "DrVelja"]
[Result "1-0"]
[WhiteElo "2527"]
[BlackElo "2771"]
[TimeControl "180+1"]
[EndTime "10:19:08 PST"]
[Termination "redbaron8888 won by resignation"]

1. d4 {[%clk 0:03:00.9]} 1... Nf6 {[%clk 0:03:00.5]} 2. Bg5 {[%clk 0:03:00.8]}
2... Ne4 {[%clk 0:02:57.9]} 3. h4 {[%clk 0:03:01]} 3... c5 {[%clk 0:02:54.4]} 4.
dxc5 {[%clk 0:02:59.7]} 4... Na6 {[%clk 0:02:51.4]} 5. Nd2 {[%clk 0:02:56.8]}
5... Naxc5 {[%clk 0:02:45.4]} 6. e3 {[%clk 0:02:51]} 6... d5 {[%clk 0:02:37.1]}
7. Ngf3 {[%clk 0:02:48]} 7... f6 {[%clk 0:02:29.2]} 8. Bf4 {[%clk 0:02:47.6]}
8... e5 {[%clk 0:02:29.2]} 9. Bh2 {[%clk 0:02:47.8]} 9... a6 {[%clk 0:02:08.5]}
10. Nxe4 {[%clk 0:02:42.6]} 10... Nxe4 {[%clk 0:02:08.3]} 11. Nd2 {[%clk
0:02:41.3]} 11... Nxd2 {[%clk 0:02:02.1]} 12. Qxd2 {[%clk 0:02:42.2]} 12... Be6
{[%clk 0:02:02.9]} 13. Be2 {[%clk 0:02:31.5]} 13... Be7 {[%clk 0:01:57.9]} 14.
O-O-O {[%clk 0:02:15.8]} 14... Qb6 {[%clk 0:01:47.6]} 15. g4 {[%clk 0:01:44]}
15... O-O {[%clk 0:01:40.4]} 16. f4 {[%clk 0:01:41.2]} 16... exf4 {[%clk
0:01:30.2]} 17. Bxf4 {[%clk 0:01:38.2]} 17... Rac8 {[%clk 0:01:27.6]} 18. g5
{[%clk 0:01:27.5]} 18... Rc6 {[%clk 0:00:58.9]} 19. Bd3 {[%clk 0:01:25]} 19...
Bb4 {[%clk 0:00:46.2]} 20. Qg2 {[%clk 0:01:18.3]} 20... f5 {[%clk 0:00:37.2]}
21. g6 {[%clk 0:01:07.4]} 21... h6 {[%clk 0:00:36.1]} 22. Rh2 {[%clk 0:00:58.1]}
22... Be7 {[%clk 0:00:36.3]} 23. Bg5 {[%clk 0:00:44.9]} 23... hxg5 {[%clk
0:00:21.6]} 24. hxg5 {[%clk 0:00:45.8]} 24... Qxe3+ {[%clk 0:00:22]} 25. Kb1
{[%clk 0:00:45.9]} 25... Qxg5 {[%clk 0:00:22.4]} 26. Qh3 {[%clk 0:00:45.6]}
26... Qxg6 {[%clk 0:00:21.8]} 27. Rg2 {[%clk 0:00:45.5]} 27... Qh7 {[%clk
0:00:14.8]} 28. Qe3 {[%clk 0:00:43.5]} 28... d4 {[%clk 0:00:12.4]} 29. Qf3
{[%clk 0:00:40.4]} 29... Rc5 {[%clk 0:00:08.7]} 30. Re2 {[%clk 0:00:38.6]} 30...
Bd5 {[%clk 0:00:08.4]} 31. Qf2 {[%clk 0:00:35.5]} 31... Be4 {[%clk 0:00:08.6]}
32. Qxd4 {[%clk 0:00:32.4]} 32... Bxd3 {[%clk 0:00:09.1]} 33. Qxd3 {[%clk
0:00:32.2]} 33... Bf6 {[%clk 0:00:08.6]} 34. Qb3+ {[%clk 0:00:31.4]} 34... Kh8
{[%clk 0:00:09.1]} 35. Qxb7 {[%clk 0:00:29.3]} 35... Qh5 {[%clk 0:00:08.7]} 36.
Rh1 {[%clk 0:00:28.4]} 36... Qxh1+ {[%clk 0:00:09.2]} 37. Qxh1+ {[%clk
0:00:27.8]} 37... Kg8 {[%clk 0:00:10.1]} 38. Qe1 {[%clk 0:00:27.2]} 38... Rb5
{[%clk 0:00:09.6]} 39. c3 {[%clk 0:00:26.2]} 39... f4 {[%clk 0:00:09.8]} 40. Re8
{[%clk 0:00:25.9]} 40... f3 {[%clk 0:00:08]} 41. Qe6+ {[%clk 0:00:25.7]} 41...
Kh7 {[%clk 0:00:06.8]} 42. Rxf8 {[%clk 0:00:24.9]} 42... f2 {[%clk 0:00:07.4]}
43. Qh3+ {[%clk 0:00:24.9]} 43... Kg6 {[%clk 0:00:07.6]} 44. Qg2+ {[%clk
0:00:24.2]} 1-0

[Event "*** Titled Tuesday Blitz"]
[Site "Chess.com"]
[Date "2020.11.03"]
[Round "2"]
[White "Iball95"]
[Black "tptagain"]
[Result "0-1"]
[WhiteElo "2607"]
[BlackElo "2955"]
[TimeControl "180+1"]
[EndTime "10:19:09 PST"]
[Termination "tptagain won by resignation"]

1. d4 {[%clk 0:02:57.5]} 1... d6 {[%clk 0:02:59.5]} 2. e4 {[%clk 0:02:51.4]}
2... Nf6 {[%clk 0:02:58.8]} 3. Nc3 {[%clk 0:02:50]} 3... g6 {[%clk 0:02:59]} 4.
Be3 {[%clk 0:02:48.3]} 4... Bg7 {[%clk 0:02:58]} 5. Qd2 {[%clk 0:02:48.6]} 5...
a6 {[%clk 0:02:55.2]} 6. Bh6 {[%clk 0:02:46.5]} 6... Bxh6 {[%clk 0:02:53.3]} 7.
Qxh6 {[%clk 0:02:47.4]} 7... Nc6 {[%clk 0:02:52.7]} 8. Nf3 {[%clk 0:02:46.8]}
8... Bg4 {[%clk 0:02:44]} 9. O-O-O {[%clk 0:02:33.6]} 9... Bxf3 {[%clk
0:02:42.1]} 10. gxf3 {[%clk 0:02:34.5]} 10... e6 {[%clk 0:02:32.6]} 11. e5
{[%clk 0:02:00.4]} 11... Nh5 {[%clk 0:02:25.4]} 12. f4 {[%clk 0:01:51.7]} 12...
dxe5 {[%clk 0:02:18]} 13. fxe5 {[%clk 0:01:38]} 13... Qh4 {[%clk 0:01:58.6]} 14.
d5 {[%clk 0:01:37.2]} 14... exd5 {[%clk 0:01:55.1]} 15. Nxd5 {[%clk 0:01:38.1]}
15... O-O-O {[%clk 0:01:54.7]} 16. f4 {[%clk 0:01:33.3]} 16... Rxd5 {[%clk
0:01:34.9]} 17. Rxd5 {[%clk 0:01:34.2]} 17... Qxf4+ {[%clk 0:01:35]} 18. Qxf4
{[%clk 0:01:31.6]} 18... Nxf4 {[%clk 0:01:35.9]} 19. Rd2 {[%clk 0:01:26.1]}
19... Nxe5 {[%clk 0:01:35.9]} 20. Rf2 {[%clk 0:01:06.9]} 20... g5 {[%clk
0:01:20.9]} 21. h4 {[%clk 0:01:04.5]} 21... f6 {[%clk 0:01:21.5]} 22. Bh3+
{[%clk 0:01:00.5]} 22... Kb8 {[%clk 0:01:10.1]} 23. Bf5 {[%clk 0:01:00]} 23...
h6 {[%clk 0:01:01.8]} 24. Re1 {[%clk 0:00:52.8]} 24... c6 {[%clk 0:00:49.6]} 25.
Re3 {[%clk 0:00:47.7]} 25... Kc7 {[%clk 0:00:48.9]} 26. c3 {[%clk 0:00:47.2]}
26... Rd8 {[%clk 0:00:46.4]} 27. Kc2 {[%clk 0:00:46.9]} 27... a5 {[%clk
0:00:46.4]} 28. Re1 {[%clk 0:00:43]} 28... Kb6 {[%clk 0:00:43.9]} 29. Rh1 {[%clk
0:00:34.7]} 29... Nc4 {[%clk 0:00:42.8]} 30. Kc1 {[%clk 0:00:26.7]} 30... Ne3
{[%clk 0:00:41.4]} 31. Bc2 {[%clk 0:00:22.4]} 31... Re8 {[%clk 0:00:35.2]} 32.
b3 {[%clk 0:00:21.7]} 32... Ng4 {[%clk 0:00:34.7]} 33. Rd2 {[%clk 0:00:19.3]}
33... Re3 {[%clk 0:00:35.2]} 34. Kb2 {[%clk 0:00:18.9]} 34... Ne5 {[%clk
0:00:35.4]} 35. hxg5 {[%clk 0:00:18.8]} 35... hxg5 {[%clk 0:00:35]} 36. Rh7
{[%clk 0:00:19.1]} 36... g4 {[%clk 0:00:34.4]} 37. Rg7 {[%clk 0:00:18.5]} 37...
g3 {[%clk 0:00:34.2]} 38. a4 {[%clk 0:00:16.6]} 38... g2 {[%clk 0:00:34.2]} 39.
Rdxg2 {[%clk 0:00:16.8]} 39... Nxg2 {[%clk 0:00:34.8]} 40. Rxg2 {[%clk
0:00:16.9]} 40... Rf3 {[%clk 0:00:35]} 41. Rg7 {[%clk 0:00:16.6]} 41... f5
{[%clk 0:00:34.3]} 42. Rg8 {[%clk 0:00:16]} 42... f4 {[%clk 0:00:34.1]} 43. Rf8
{[%clk 0:00:16.4]} 43... Rf2 {[%clk 0:00:34.4]} 44. Kc1 {[%clk 0:00:16.9]} 44...
Nd7 {[%clk 0:00:34.1]} 45. Rf7 {[%clk 0:00:16.4]} 45... Nc5 {[%clk 0:00:34.3]}
46. Rf5 {[%clk 0:00:12.5]} 46... Ne6 {[%clk 0:00:33.5]} 47. b4 {[%clk
0:00:12.5]} 47... axb4 {[%clk 0:00:32.9]} 48. a5+ {[%clk 0:00:12.4]} 48... Ka7
{[%clk 0:00:32.6]} 49. cxb4 {[%clk 0:00:07.6]} 49... Rxc2+ {[%clk 0:00:32.8]}
0-1

[Event "*** Titled Tuesday Blitz"]
[Site "Chess.com"]
[Date "2020.11.03"]
[Round "2"]
[White "anon481216"]
[Black "Svet99"]
[Result "0-1"]
[WhiteElo "2392"]
[BlackElo "2188"]
[TimeControl "180+1"]
[EndTime "10:19:10 PST"]
[Termination "Svet99 won on time"]

1. d4 {[%clk 0:03:00.9]} 1... Nf6 {[%clk 0:02:49]} 2. c4 {[%clk 0:03:00.1]} 2...
e6 {[%clk 0:02:49.1]} 3. Nf3 {[%clk 0:02:59.8]} 3... b6 {[%clk 0:02:48.2]} 4. a3
{[%clk 0:02:58.1]} 4... Bb7 {[%clk 0:02:48.1]} 5. Nc3 {[%clk 0:02:57.4]} 5...
Be7 {[%clk 0:02:46.7]} 6. d5 {[%clk 0:02:52.5]} 6... O-O {[%clk 0:02:44.8]} 7.
e4 {[%clk 0:02:51]} 7... d6 {[%clk 0:02:41.8]} 8. Bd3 {[%clk 0:02:49]} 8... e5
{[%clk 0:02:41.6]} 9. O-O {[%clk 0:02:47.3]} 9... Nbd7 {[%clk 0:02:41.3]} 10. b4
{[%clk 0:02:46]} 10... a5 {[%clk 0:02:39.7]} 11. Bd2 {[%clk 0:02:30.7]} 11...
Nh5 {[%clk 0:02:20.4]} 12. g3 {[%clk 0:02:30.3]} 12... g6 {[%clk 0:02:18.1]} 13.
Bh6 {[%clk 0:02:25.9]} 13... Ng7 {[%clk 0:02:17.9]} 14. Qc2 {[%clk 0:02:22.7]}
14... Nf6 {[%clk 0:02:09.1]} 15. Rae1 {[%clk 0:02:17.6]} 15... Ng4 {[%clk
0:02:08.2]} 16. Bc1 {[%clk 0:02:16.7]} 16... f5 {[%clk 0:02:07]} 17. Kg2 {[%clk
0:01:54.9]} 17... Qd7 {[%clk 0:01:53.5]} 18. h3 {[%clk 0:01:21.1]} 18... Nf6
{[%clk 0:01:52.8]} 19. Bg5 {[%clk 0:00:59.4]} 19... Nxe4 {[%clk 0:01:41.1]} 20.
Nxe4 {[%clk 0:00:55.6]} 20... fxe4 {[%clk 0:01:39.4]} 21. Bxe4 {[%clk
0:00:55.5]} 21... Rxf3 {[%clk 0:01:36.2]} 22. Bxe7 {[%clk 0:00:48.1]} 22... Rxa3
{[%clk 0:01:33]} 23. Bg5 {[%clk 0:00:33.5]} 23... axb4 {[%clk 0:01:32.9]} 24.
Qb1 {[%clk 0:00:28.4]} 24... b3 {[%clk 0:01:16.6]} 25. Re3 {[%clk 0:00:27.3]}
25... Ba6 {[%clk 0:01:14.8]} 26. Rc1 {[%clk 0:00:24.3]} 26... Qa4 {[%clk
0:01:06.9]} 27. Bd3 {[%clk 0:00:15.5]} 27... Ra2 {[%clk 0:00:45.5]} 28. Be2
{[%clk 0:00:08.1]} 28... b2 {[%clk 0:00:45.2]} 29. Rc2 {[%clk 0:00:07.8]} 29...
Rf8 {[%clk 0:00:36.1]} 30. Rxb2 {[%clk 0:00:06.6]} 30... Rxb2 {[%clk 0:00:34.9]}
31. Qxb2 {[%clk 0:00:06.9]} 31... Bxc4 {[%clk 0:00:34.4]} 32. Bf3 {[%clk
0:00:06.3]} 32... Qa5 {[%clk 0:00:24.5]} 33. Qc2 {[%clk 0:00:02.2]} 33... Qb5
{[%clk 0:00:23.7]} 34. Qd2 {[%clk 0:00:01.4]} 34... Nf5 {[%clk 0:00:19.8]} 35.
Rc3 {[%clk 0:00:01.9]} 35... Bf1+ {[%clk 0:00:17.8]} 36. Kh2 {[%clk 0:00:01.5]}
36... Nd4 {[%clk 0:00:17.9]} 37. Be4 {[%clk 0:00:01.6]} 37... Be2 {[%clk
0:00:11.6]} 0-1

[Event "*** Titled Tuesday Blitz"]
[Site "Chess.com"]
[Date "2020.11.03"]
[Round "2"]
[White "LiemLe"]
[Black "Rakhimzhan_Alen"]
[Result "1-0"]
[WhiteElo "3009"]
[BlackElo "2622"]
[TimeControl "180+1"]
[EndTime "10:19:11 PST"]
[Termination "LiemLe won by resignation"]

1. e4 {[%clk 0:03:00.9]} 1... e5 {[%clk 0:02:59.5]} 2. Nf3 {[%clk 0:03:00.6]}
2... Nc6 {[%clk 0:02:59.3]} 3. Bb5 {[%clk 0:02:59.2]} 3... Nf6 {[%clk
0:02:59.2]} 4. d3 {[%clk 0:02:58.5]} 4... Bc5 {[%clk 0:02:58.9]} 5. Nbd2 {[%clk
0:02:58.2]} 5... d6 {[%clk 0:02:57.9]} 6. c3 {[%clk 0:02:57.7]} 6... O-O {[%clk
0:02:57.6]} 7. O-O {[%clk 0:02:57.4]} 7... a6 {[%clk 0:02:56.7]} 8. Ba4 {[%clk
0:02:56.4]} 8... Ba7 {[%clk 0:02:56.6]} 9. h3 {[%clk 0:02:55]} 9... h6 {[%clk
0:02:55.5]} 10. Re1 {[%clk 0:02:55.5]} 10... Ne7 {[%clk 0:02:54.5]} 11. Nf1
{[%clk 0:02:56.1]} 11... Ng6 {[%clk 0:02:55.1]} 12. Ng3 {[%clk 0:02:50.4]} 12...
b5 {[%clk 0:02:54.8]} 13. Bc2 {[%clk 0:02:49.1]} 13... c5 {[%clk 0:02:46.9]} 14.
d4 {[%clk 0:02:48.4]} 14... cxd4 {[%clk 0:02:46.5]} 15. cxd4 {[%clk 0:02:49.3]}
15... Be6 {[%clk 0:02:43.2]} 16. Be3 {[%clk 0:02:48.1]} 16... Qb8 {[%clk
0:02:16.9]} 17. Qd2 {[%clk 0:02:45.8]} 17... Re8 {[%clk 0:02:10.5]} 18. Rad1
{[%clk 0:02:26.6]} 18... Qb7 {[%clk 0:02:06.3]} 19. Nf5 {[%clk 0:02:09.1]} 19...
d5 {[%clk 0:01:07.6]} 20. Nd6 {[%clk 0:02:08]} 20... Qc7 {[%clk 0:00:51.9]} 21.
Nxe8 {[%clk 0:02:07.8]} 21... Rxe8 {[%clk 0:00:52.2]} 22. dxe5 {[%clk
0:01:54.7]} 22... Nxe4 {[%clk 0:00:51]} 23. Bxe4 {[%clk 0:01:18.4]} 23... dxe4
{[%clk 0:00:46.4]} 24. Nd4 {[%clk 0:01:18.6]} 24... Bxa2 {[%clk 0:00:41.1]} 25.
Rc1 {[%clk 0:00:48.8]} 25... Qb7 {[%clk 0:00:40.4]} 26. Nf5 {[%clk 0:00:36.2]}
26... Bxe3 {[%clk 0:00:33.5]} 27. Rxe3 {[%clk 0:00:37.1]} 27... Rxe5 {[%clk
0:00:29.7]} 28. Nd6 {[%clk 0:00:35.7]} 28... Rd5 {[%clk 0:00:19.1]} 29. Qb4
{[%clk 0:00:30.6]} 29... Qe7 {[%clk 0:00:15.6]} 30. Rc6 {[%clk 0:00:23.9]} 30...
Rd1+ {[%clk 0:00:12.1]} 31. Kh2 {[%clk 0:00:23.2]} 31... Qe5+ {[%clk 0:00:12.1]}
32. g3 {[%clk 0:00:23.1]} 32... Bd5 {[%clk 0:00:10.1]} 33. Rxa6 {[%clk
0:00:21.3]} 33... Nh4 {[%clk 0:00:08.8]} 34. Nxe4 {[%clk 0:00:17.5]} 34... Nf3+
{[%clk 0:00:04.2]} 35. Kg2 {[%clk 0:00:15.4]} 35... Bxe4 {[%clk 0:00:03]} 36.
Qxe4 {[%clk 0:00:16.3]} 36... Qxe4 {[%clk 0:00:03.1]} 37. Rxe4 {[%clk
0:00:17.2]} 37... Ne1+ {[%clk 0:00:03.7]} 38. Kf1 {[%clk 0:00:15.6]} 38... Nd3+
{[%clk 0:00:04.2]} 39. Ke2 {[%clk 0:00:16.2]} 39... Nxb2 {[%clk 0:00:04.4]} 40.
Ra2 {[%clk 0:00:15.4]} 40... Rb1 {[%clk 0:00:03.7]} 41. Rb4 {[%clk 0:00:15.9]}
41... Na4 {[%clk 0:00:03.8]} 42. Raxa4 {[%clk 0:00:16.2]} 1-0

[Event "*** Titled Tuesday Blitz"]
[Site "Chess.com"]
[Date "2020.11.03"]
[Round "2"]
[White "enestnrvrd"]
[Black "rasmussvane"]
[Result "0-1"]
[WhiteElo "2603"]
[BlackElo "2946"]
[TimeControl "180+1"]
[EndTime "10:19:11 PST"]
[Termination "rasmussvane won by resignation"]

1. d4 {[%clk 0:03:00.9]} 1... d5 {[%clk 0:02:59.3]} 2. c4 {[%clk 0:02:59.9]}
2... e6 {[%clk 0:02:59.7]} 3. Nf3 {[%clk 0:03:00.1]} 3... a6 {[%clk 0:03:00.2]}
4. Nc3 {[%clk 0:03:00.1]} 4... dxc4 {[%clk 0:03:00.1]} 5. e3 {[%clk 0:02:56.8]}
5... b5 {[%clk 0:02:59.6]} 6. a4 {[%clk 0:02:55.6]} 6... b4 {[%clk 0:02:59.8]}
7. Ne4 {[%clk 0:02:44.1]} 7... Bb7 {[%clk 0:02:59.9]} 8. Ng3 {[%clk 0:02:41.6]}
8... c5 {[%clk 0:02:49.4]} 9. Bxc4 {[%clk 0:02:39.9]} 9... Nf6 {[%clk
0:02:49.9]} 10. O-O {[%clk 0:02:39.8]} 10... Nbd7 {[%clk 0:02:49.3]} 11. a5
{[%clk 0:02:31.7]} 11... Bd6 {[%clk 0:02:47.9]} 12. Qe2 {[%clk 0:01:48]} 12...
h5 {[%clk 0:02:44.6]} 13. e4 {[%clk 0:01:21.8]} 13... cxd4 {[%clk 0:02:21.4]}
14. Nxd4 {[%clk 0:01:20.8]} 14... h4 {[%clk 0:02:06.2]} 15. Ngf5 {[%clk
0:01:18.8]} 15... exf5 {[%clk 0:02:07.1]} 16. Nxf5 {[%clk 0:01:17.1]} 16... Qc7
{[%clk 0:00:41.7]} 17. h3 {[%clk 0:01:15.9]} 17... O-O {[%clk 0:00:32.1]} 18.
Bg5 {[%clk 0:01:06.7]} 18... Bxe4 {[%clk 0:00:28.1]} 19. Rac1 {[%clk 0:00:43.6]}
19... Bxf5 {[%clk 0:00:27.1]} 20. Bxf7+ {[%clk 0:00:41.6]} 20... Rxf7 {[%clk
0:00:28]} 21. Rxc7 {[%clk 0:00:41.9]} 21... Bxc7 {[%clk 0:00:28.9]} 22. Qc4
{[%clk 0:00:37.5]} 22... Bxa5 {[%clk 0:00:19.9]} 23. Re1 {[%clk 0:00:35.7]}
23... Bb6 {[%clk 0:00:15.6]} 24. Re7 {[%clk 0:00:34.6]} 24... Rf8 {[%clk
0:00:14.7]} 25. Bxh4 {[%clk 0:00:31.8]} 25... Bg6 {[%clk 0:00:09.7]} 26. Re6
{[%clk 0:00:14.9]} 26... Kh7 {[%clk 0:00:06.3]} 27. Bg3 {[%clk 0:00:14]} 27...
a5 {[%clk 0:00:05.5]} 28. Qh4+ {[%clk 0:00:10.4]} 28... Kg8 {[%clk 0:00:05.4]}
29. Qc4 {[%clk 0:00:10.1]} 29... Ba7 {[%clk 0:00:05.3]} 30. Re7 {[%clk
0:00:10.3]} 30... Kh7 {[%clk 0:00:04.8]} 31. Qh4+ {[%clk 0:00:09.9]} 31... Nh5
{[%clk 0:00:05.3]} 32. Rxf7 {[%clk 0:00:06.6]} 32... Rxf7 {[%clk 0:00:06.2]} 33.
Bd6 {[%clk 0:00:06.1]} 33... Bxf2+ {[%clk 0:00:05.9]} 34. Qxf2 {[%clk
0:00:06.4]} 34... Rxf2 {[%clk 0:00:06.8]} 35. Kxf2 {[%clk 0:00:06.8]} 35... Nhf6
{[%clk 0:00:07.7]} 36. Ke3 {[%clk 0:00:07]} 36... Kg8 {[%clk 0:00:06.9]} 37. Bc7
{[%clk 0:00:07.9]} 37... a4 {[%clk 0:00:07]} 38. Bd6 {[%clk 0:00:07.7]} 38...
Kf7 {[%clk 0:00:07.6]} 39. Bxb4 {[%clk 0:00:07.8]} 39... Nd5+ {[%clk 0:00:08.1]}
0-1